fUST/lending_fUST_20260109
["ID","MTS","AMOUNT","RATE_DAILY","PERIOD"]
[401086880,1767913841939,-30000.0,0.00025285,2]
[401086881,1767913841948,-151.0,0.00025285,2]
[401086882,1767913841957,-2451.0153588,0.00025314,2]
[401086883,1767913841970,-2105.41764886,0.0002534,2]
[401086884,1767913841979,-2183.31810187,0.00025395,2]
[401086885,1767913841988,-518.09,0.000254,7]
[401086886,1767913841997,-725.02976422,0.00025448,2]
[401086887,1767913842006,-2264.10087164,0.0002545,2]
[401086888,1767913842015,-2649.45869589,0.00025495,2]
[401086889,1767913842024,-2347.87260389,0.00025505,2]
[401086890,1767913842033,-188.0,0.00025534,17]
[401086891,1767913842042,-346.08802445,0.00025558,110]
[401086892,1767913842051,-2434.74389024,0.0002556,2]
[401086893,1767913842060,-2451.0153588,0.0002556,2]
[401086894,1767913842069,-904.83,0.000256,14]
[401086895,1767913842077,-17902.14,0.000256,2]
[401086896,1767913842086,-1369.47464648,0.00025615,2]
[401086897,1767913842095,-350.0,0.00025753,2]
[401086898,1767913842104,-31110.0,0.00025833,2]
[401086899,1767913842113,-2451.0153588,0.00025931,2]
[401086900,1767913842122,-444.77,0.000261,2]
[401086901,1767913842131,-2451.0153588,0.00026186,2]
[401086902,1767913842139,-554.95289818,0.00026219,19]
[401086903,1767913842148,-419.6,0.00026228,2]
[401086904,1767913842157,-151.0,0.000263,18]
[401086905,1767913842166,-450.0,0.00026301,2]
[401086906,1767913842175,-32261.07,0.00026381,2]
[401086907,1767913842184,-2146.0,0.00026558,2]
[401086908,1767913842193,-628.0,0.00026558,2]
[401086909,1767913842202,-2451.0153588,0.0002656,2]
[401086911,1767913842211,-1366.0,0.00026567,2]
[401086913,1767913842220,-417.0,0.00026586,2]
[401086915,1767913842230,-417.0,0.00026586,2]
[401086917,1767913842239,-714.0,0.00026586,2]
[401086919,1767913842249,-195.337,0.00026586,2]
[401086921,1767913842259,-180.04861313,0.00026622,2]
[401086924,1767913842268,-900.0,0.00026682,7]
[401086925,1767913842277,-151.0,0.00026697,3]
[401086927,1767913842286,-151.0,0.00026697,3]
[401086929,1767913842295,-151.0,0.00026697,3]
[401086931,1767913842305,-151.0,0.00026697,3]
[401086934,1767913842315,-151.0,0.00026697,3]
[401086936,1767913842324,-900.0,0.00026699,7]
[401086937,1767913842334,-518.09,0.000267,7]
[401086939,1767913842343,-253.179,0.00026746,14]
[401086942,1767913842352,-5000.0,0.00026746,2]
[401086943,1767913842361,-900.0,0.00026756,7]
[401086945,1767913842371,-2566.24195812,0.00026825,2]
[401086947,1767913842380,-2451.0153588,0.00026842,2]
[401086949,1767913842389,-550.0,0.00026849,2]
[401086952,1767913842400,-900.0,0.00026872,7]
[401086954,1767913842409,-800.0,0.00026877,2]
[401086956,1767913842418,-2451.0153588,0.00026901,2]
[401086958,1767913842427,-33454.72959,0.00026929,2]
[401086960,1767913842436,-17902.14,0.00027,2]
[401086962,1767913842447,-298.474692,0.00027,7]
[401086963,1767913842456,-151.0,0.00027,7]
[401086965,1767913842467,-151.0,0.00027,7]
[401086967,1767913842477,-151.0,0.00027,7]
[401086969,1767913842486,-446.0,0.00027,7]
[401086971,1767913842496,-8649.19371835,0.00027013,2]
[401086974,1767913842505,-900.0,0.00027037,7]
[401086976,1767913842515,-900.0,0.00027052,7]
[401086978,1767913842524,-904.83,0.000271,14]
[401086980,1767913842533,-1000.0,0.00027102,30]
[401086982,1767913842542,-1000.0,0.00027102,30]
[401086985,1767913842554,-579.0,0.00027102,30]
[401086986,1767913842563,-554.95289818,0.00027157,20]
[401086989,1767913842572,-151.0,0.00027179,7]
[401086990,1767913842581,-151.0,0.00027179,7]
[401086992,1767913842591,-151.0,0.00027179,7]
[401086994,1767913842600,-151.0,0.00027179,7]
[401086996,1767913842609,-151.0,0.00027179,7]
[401086998,1767913842620,-151.0,0.00027179,7]
[401087001,1767913842629,-151.0,0.00027179,7]
[401087004,1767913842637,-151.0,0.00027179,7]
[401087007,1767913842647,-151.0,0.00027179,7]
[401087009,1767913842657,-151.0,0.00027179,7]
[401087011,1767913842666,-2451.0153588,0.00027255,2]
[401087013,1767913842676,-7708.90119015,0.00027343,2]
[401087015,1767913842684,-230.27,0.00027363,2]
[401087017,1767913842693,-800.0,0.00027374,2]
[401087019,1767913842702,-419.6,0.00027393,2]
[401087021,1767913842711,-1803.46,0.00027397,2]
[401087023,1767913842721,-223.85462441,0.00027397,2]
[401087024,1767913842730,-650.0,0.00027397,5]
[401087026,1767913842739,-300.0,0.00027397,2]
[401087028,1767913842748,-300.0,0.00027397,2]
[401087030,1767913842757,-300.0,0.00027397,2]
[401087032,1767913842766,-300.0,0.00027397,2]
[401087034,1767913842775,-300.0,0.00027397,2]
[401087036,1767913842784,-517.95,0.00027397,15]
[401087038,1767913842793,-500.0,0.00027397,5]
[401087040,1767913842802,-300.0,0.00027397,5]
[401087042,1767913842811,-157.24522628,0.00027397,5]
[401087044,1767913842820,-514.97749556,0.00027397,5]
[401087046,1767913842829,-162.88,0.000274,7]
[401087048,1767913842838,-163.0,0.000274,7]
[401087050,1767913842848,-778.5155665,0.00027448,2]
[401087052,1767913842857,-900.0,0.0002746,7]
[401087054,1767913842866,-200.0,0.00027476,10]
[401087056,1767913842875,-34692.55458483,0.00027477,2]
[401087058,1767913842885,-605.87241,0.00027477,7]
[401087060,1767913842894,-605.87241,0.00027477,7]
[401087062,1767913842904,-605.87241,0.00027477,7]
[401087064,1767913842914,-605.87241,0.00027477,7]
[401087066,1767913842923,-151.0,0.00027477,7]
[401087068,1767913842932,-417.697268,0.00027487,7]
[401087070,1767913842942,-417.697268,0.00027487,7]
[401087072,1767913842955,-417.697268,0.00027487,7]
[401087074,1767913842964,-417.697268,0.00027487,7]
[401087076,1767913842974,-163.657676,0.00027487,7]
[401087078,1767913842984,-163.657676,0.00027487,7]
[401087080,1767913842993,-163.657676,0.00027487,7]
[401087082,1767913843002,-163.657676,0.00027487,7]
[401087084,1767913843012,-151.0,0.00027487,7]
[401087086,1767913843022,-151.0,0.00027487,7]
[401087088,1767913843032,-151.0,0.00027487,7]
[401087090,1767913843041,-151.0,0.00027487,7]
[401087092,1767913843050,-2451.0153588,0.00027513,2]
[401087094,1767913843059,-900.0,0.00027549,7]
[401087096,1767913843067,-446.0,0.00027671,14]
[401087098,1767913843076,-630.88933702,0.00027701,2]
[401087100,1767913843085,-2523.55734806,0.00027701,2]
[401087102,1767913843094,-5672.3260291,0.00027701,2]
[401087104,1767913843104,-518.37684722,0.00027701,2]
[401087106,1767913843113,-2073.50738888,0.00027701,2]
[401087107,1767913843122,-4665.39162498,0.00027701,2]
[401087110,1767913843131,-8294.02955552,0.00027701,2]
[401087111,1767913843140,-655.73628656,0.00027701,2]
[401087114,1767913843149,-2622.94514623,0.00027701,2]
[401087115,1767913843160,-5901.62657901,0.00027701,2]
[401087118,1767913843169,-337.01472795,0.00027701,2]
[401087119,1767913843178,-1348.05891182,0.00027701,2]
[401087122,1767913843188,-3033.13255159,0.00027701,2]
[401087123,1767913843197,-5392.23564728,0.00027701,2]
[401087126,1767913843206,-8416.94283068,0.00027701,2]
[401087128,1767913843216,-32138.5530642,0.00027725,2]
[401087129,1767913843225,-523.8570901,0.00027725,2]
[401087131,1767913843234,-811.3328398,0.00027725,2]
[401087133,1767913843242,-8736.1833257,0.00027725,2]
[401087135,1767913843251,-1135.6253242,0.00027725,2]
[401087137,1767913843260,-287.4757497,0.00027725,2]
[401087139,1767913843269,-310.474251,0.00027725,7]
[401087141,1767913843278,-310.474251,0.00027725,7]
[401087143,1767913843287,-310.474251,0.00027725,7]
[401087145,1767913843296,-310.474251,0.00027725,7]
[401087147,1767913843305,-345.0425836,0.00027725,2]
[401087149,1767913843314,-151.0,0.00027725,7]
[401087151,1767913843323,-151.0,0.00027725,7]
[401087153,1767913843332,-151.0,0.00027725,7]
[401087155,1767913843341,-151.0,0.00027725,2]
[401087157,1767913843350,-151.0,0.00027725,7]
[401087159,1767913843359,-151.0,0.00027725,7]
[401087161,1767913843368,-151.0,0.00027725,7]
[401087163,1767913843377,-1912.968557,0.00027725,7]
[401087165,1767913843387,-151.0,0.00027725,7]
[401087167,1767913843395,-1912.968557,0.00027725,7]
[401087169,1767913843404,-151.0,0.00027725,7]
[401087186,1767913843549,-1912.968557,0.00027725,7]
[401087188,1767913843559,-1912.968557,0.00027725,7]
[401087190,1767913843568,-497.7666,0.00027725,7]
[401087192,1767913843577,-497.7666,0.00027725,7]
[401087194,1767913843586,-497.7666,0.00027725,7]
[401087196,1767913843595,-497.7666,0.00027725,7]
[401087198,1767913843604,-151.0,0.00027725,7]
[401087200,1767913843613,-151.0,0.00027725,7]
[401087202,1767913843624,-151.0,0.00027725,7]
[401087204,1767913843634,-151.0,0.00027725,7]
[401087206,1767913843643,-154.36524,0.00027725,7]
[401087208,1767913843652,-151.0,0.00027725,7]
[401087211,1767913843662,-151.0,0.00027725,7]
[401087214,1767913843671,-151.0,0.00027725,7]
[401087218,1767913843683,-151.0,0.00027725,7]
[401087221,1767913843692,-151.0,0.00027725,7]
[401087223,1767913843701,-978.076784,0.00027725,7]
[401087224,1767913843711,-151.0,0.00027725,7]
[401087226,1767913843720,-978.076784,0.00027725,7]
[401087228,1767913843730,-978.076784,0.00027725,7]
[401087230,1767913843739,-978.076784,0.00027725,7]
[401087232,1767913843748,-227.082154,0.00027725,7]
[401087235,1767913843757,-210.0,0.00027726,26]
[401087238,1767913843767,-518.09,0.000278,7]
[401087241,1767913843776,-2451.0153605,0.00027909,2]
[401087244,1767913843786,-1549.0,0.00027933,2]
[401087246,1767913843795,-174.61919141,0.00027944,5]
[401087248,1767913843803,-1500.0,0.00027944,5]
[401087249,1767913843812,-250.0,0.00027944,5]
[401087251,1767913843822,-181.08010149,0.00027944,5]
[401087254,1767913843832,-250.0,0.00027944,5]
[401087256,1767913843842,-1500.0,0.00027944,5]
[401087258,1767913843851,-250.0,0.00027944,5]
[401087260,1767913843860,-250.0,0.00027944,5]
[401087262,1767913843869,-1500.0,0.00027944,5]
[401087263,1767913843878,-250.0,0.00027944,5]
[401087266,1767913843887,-250.0,0.00027944,5]
[401087268,1767913843896,-1500.0,0.00027944,5]
[401087269,1767913843906,-151.0,0.00027944,5]
[401087271,1767913843915,-250.0,0.00027944,5]
[401087273,1767913843924,-250.0,0.00027944,5]
[401087276,1767913843935,-1500.0,0.00027944,5]
[401087278,1767913843944,-151.0,0.00027944,5]
[401087280,1767913843953,-250.0,0.00027944,5]
[401087282,1767913843963,-250.0,0.00027944,5]
[401087284,1767913843973,-1500.0,0.00027944,5]
[401087286,1767913843982,-151.0,0.00027944,5]
[401087288,1767913843991,-250.0,0.00027944,5]
[401087290,1767913844000,-250.0,0.00027944,5]
[401087292,1767913844009,-1500.0,0.00027944,5]
[401087294,1767913844019,-151.0,0.00027944,5]
[401087295,1767913844028,-250.0,0.00027944,5]
[401087297,1767913844039,-250.0,0.00027944,5]
[401087299,1767913844048,-1271.89158797,0.00027944,5]
[401087301,1767913844057,-151.0,0.00027944,5]
[401087304,1767913844066,-250.0,0.00027944,5]
[401087306,1767913844075,-250.0,0.00027944,5]
[401087308,1767913844085,-151.0,0.00027944,5]
[401087310,1767913844094,-250.0,0.00027944,5]
[401087312,1767913844103,-151.0,0.00027944,5]
[401087314,1767913844112,-250.0,0.00027944,5]
[401087316,1767913844123,-294.36088308,0.00027944,5]
[401087318,1767913844132,-500.0,0.00027944,5]
[401087320,1767913844142,-151.15345632,0.00027944,5]
[401087322,1767913844151,-250.0,0.00027944,5]
[401087324,1767913844160,-250.0,0.00027944,5]
[401087326,1767913844170,-500.0,0.00027944,5]
[401087328,1767913844179,-250.0,0.00027944,5]
[401087330,1767913844188,-305.03589373,0.00027944,5]
[401087332,1767913844197,-500.0,0.00027944,5]
[401087334,1767913844206,-250.0,0.00027944,5]
[401087336,1767913844216,-500.0,0.00027944,5]
[401087338,1767913844225,-250.0,0.00027944,5]
[401087340,1767913844235,-609.47325435,0.00027944,5]
[401087342,1767913844244,-250.0,0.00027944,5]
[401087344,1767913844253,-250.0,0.00027944,5]
[401087346,1767913844262,-1093.27707489,0.00027944,5]
[401087348,1767913844272,-250.0,0.00027944,5]
[401087350,1767913844281,-250.0,0.00027944,5]
[401087352,1767913844289,-250.0,0.00027944,5]
[401087354,1767913844299,-250.0,0.00027944,5]
[401087356,1767913844308,-250.0,0.00027944,5]
[401087358,1767913844316,-2312.83697232,0.00027944,5]
[401087360,1767913844325,-250.0,0.00027944,5]
[401087362,1767913844334,-250.0,0.00027944,5]
[401087364,1767913844344,-2398.4119403,0.00027944,5]
[401087366,1767913844353,-2487.15318209,0.00027944,5]
[401087368,1767913844362,-2579.17784983,0.00027944,5]
[401087370,1767913844371,-2674.60743027,0.00027944,5]
[401087372,1767913844380,-2773.56790519,0.00027944,5]
[401087374,1767913844389,-2876.18991768,0.00027944,5]
[401087376,1767913844398,-2982.60894464,0.00027944,5]
[401087378,1767913844408,-250.0,0.00027944,5]
[401087380,1767913844417,-3092.96547559,0.00027944,5]
[401087382,1767913844426,-250.0,0.00027944,5]
[401087384,1767913844435,-3207.40519818,0.00027944,5]
[401087386,1767913844444,-250.0,0.00027944,5]
[401087388,1767913844454,-3326.07919052,0.00027944,5]
[401087390,1767913844463,-151.0,0.00027944,5]
[401087392,1767913844472,-250.0,0.00027944,5]
[401087394,1767913844481,-3449.14412057,0.00027944,5]
[401087396,1767913844490,-151.0,0.00027944,5]
[401087398,1767913844499,-250.0,0.00027944,5]
[401087400,1767913844509,-3576.76245303,0.00027944,5]
[401087402,1767913844518,-151.0,0.00027944,5]
[401087404,1767913844527,-250.0,0.00027944,5]
[401087406,1767913844535,-3709.10266379,0.00027944,5]
[401087408,1767913844544,-151.0,0.00027944,5]
[401087409,1767913844557,-250.0,0.00027944,5]
[401087411,1767913844566,-3846.33946235,0.00027944,5]
[401087413,1767913844576,-250.0,0.00027944,5]
[401087415,1767913844587,-151.0,0.00027944,5]
[401087418,1767913844597,-3988.65402246,0.00027944,5]
[401087419,1767913844606,-250.0,0.00027944,5]
[401087421,1767913844614,-151.0,0.00027944,5]
[401087423,1767913844625,-151.0,0.00027944,5]
[401087425,1767913844634,-151.0,0.00027944,5]
[401087427,1767913844643,-151.0,0.00027944,5]
[401087429,1767913844651,-151.0,0.00027944,5]
[401087431,1767913844660,-151.0,0.00027944,5]
[401087433,1767913844669,-4156.44739681,0.00027945,5]
[401087435,1767913844678,-4315.82480178,0.00027945,5]
[401087437,1767913844687,-1463.6522745,0.00027945,5]
[401087439,1767913844696,-5848.75448891,0.00027945,5]
[401087441,1767913844706,-1744.54682706,0.00027945,5]
[401087443,1767913844715,-6978.18730824,0.00027945,5]
[401087445,1767913844724,-1000.0,0.00027945,5]
[401087447,1767913844733,-600.0,0.00027945,5]
[401087449,1767913844742,-750.0,0.00027945,5]
[401087451,1767913844752,-250.0,0.00027945,5]
[401087453,1767913844761,-250.0,0.00027945,5]
[401087455,1767913844770,-151.0,0.00027988,7]
[401087458,1767913844780,-264.224,0.00027988,7]
[401087460,1767913844789,-264.224,0.00027988,7]
[401087461,1767913844799,-264.224,0.00027988,7]
[401087463,1767913844808,-264.224,0.00027988,7]
[401087465,1767913844817,-151.0,0.00027988,7]
[401087467,1767913844827,-151.0,0.00027988,7]
[401087469,1767913844836,-151.0,0.00027988,7]
[401087472,1767913844845,-151.0,0.00027988,7]
[401087474,1767913844855,-151.0,0.00027988,7]
[401087476,1767913844864,-151.0,0.00027988,7]
[401087477,1767913844873,-8151.14383765,0.00027997,2]
[401087480,1767913844883,-200.0,0.00027997,10]
[401087482,1767913844892,-280992.94649342,0.00027998,2]
[401087483,1767913844901,-151.0,0.00027998,7]
[401087485,1767913844911,-151.0,0.00027998,7]
[401087487,1767913844920,-151.0,0.00027998,7]
[401087489,1767913844929,-151.0,0.00027998,7]
[401087492,1767913844938,-151.0,0.00027998,7]
[401087494,1767913844947,-151.0,0.00027998,7]
[401087495,1767913844957,-151.0,0.00027998,7]
[401087497,1767913844966,-151.0,0.00027998,7]
[401087499,1767913844975,-151.0,0.00027998,7]
[401087501,1767913844984,-151.0,0.00027998,7]
[401087503,1767913844994,-151.0,0.00027998,7]
[401087506,1767913845003,-151.0,0.00027998,7]
[401087507,1767913845012,-310.474251,0.00027998,7]
[401087510,1767913845021,-310.474251,0.00027998,7]
[401087512,1767913845031,-310.474251,0.00027998,7]
[401087513,1767913845039,-310.474251,0.00027998,7]
[401087516,1767913845049,-417.697268,0.00027998,7]
[401087517,1767913845058,-417.697268,0.00027998,7]
[401087519,1767913845067,-417.697268,0.00027998,7]
[401087521,1767913845075,-417.697268,0.00027998,7]
[401087523,1767913845084,-163.657676,0.00027998,7]
[401087525,1767913845093,-163.657676,0.00027998,7]
[401087527,1767913845102,-163.657676,0.00027998,7]
[401087529,1767913845111,-163.657676,0.00027998,7]
[401087531,1767913845120,-151.0,0.00027998,7]
[401087533,1767913845128,-151.0,0.00027998,7]
[401087535,1767913845138,-151.0,0.00027998,7]
[401087537,1767913845147,-196.294632,0.00027998,7]
[401087539,1767913845156,-605.87241,0.00027998,7]
[401087541,1767913845165,-605.87241,0.00027998,7]
[401087543,1767913845175,-605.87241,0.00027998,7]
[401087545,1767913845184,-605.87241,0.00027998,7]
[401087547,1767913845193,-238.415405,0.00027998,7]
[401087549,1767913845202,-151.0,0.00027998,7]
[401087551,1767913845211,-178.75645,0.00027998,7]
[401087553,1767913845222,-151.0,0.00027998,2]
[401087555,1767913845231,-151.0,0.00027998,7]
[401087557,1767913845240,-151.0,0.00027998,7]
[401087559,1767913845249,-1000.0,0.00027998,2]
[401087561,1767913845257,-1000.0,0.00027998,2]
[401087562,1767913845267,-1000.0,0.00027998,2]
[401087564,1767913845276,-1000.0,0.00027998,2]
[401087565,1767913845284,-151.858704,0.00027998,7]
[401087566,1767913845294,-1912.968557,0.00027998,7]
[401087567,1767913845302,-151.0,0.00027998,7]
[401087568,1767913845311,-1912.968557,0.00027998,7]
[401087569,1767913845320,-1912.968557,0.00027998,7]
[401087570,1767913845329,-1912.968557,0.00027998,7]
[401087571,1767913845338,-497.7666,0.00027998,7]
[401087572,1767913845347,-497.7666,0.00027998,7]
[401087573,1767913845356,-497.7666,0.00027998,7]
[401087574,1767913845364,-167.94341584,0.00027998,2]
[401087575,1767913845373,-497.7666,0.00027998,7]
[401087576,1767913845383,-151.0,0.00027998,7]
[401087577,1767913845392,-151.0,0.00027998,7]
[401087578,1767913845401,-151.0,0.00027998,7]
[401087579,1767913845410,-151.0,0.00027998,7]
[401087580,1767913845419,-151.0,0.00027998,7]
[401087581,1767913845431,-151.0,0.00027998,2]
[401087582,1767913845439,-202.995975,0.00027998,7]
[401087583,1767913845448,-151.0,0.00027998,2]
[401087584,1767913845458,-151.0,0.00027998,7]
[401087585,1767913845467,-151.0,0.00027998,7]
[401087586,1767913845475,-151.0,0.00027998,7]
[401087587,1767913845484,-978.076784,0.00027998,7]
[401087588,1767913845493,-978.076784,0.00027998,7]
[401087589,1767913845502,-978.076784,0.00027998,7]
[401087590,1767913845512,-978.076784,0.00027998,7]
[401087591,1767913845523,-1041.66666667,0.00028,7]
[401087592,1767913845532,-200.0,0.00028024,10]
[401087593,1767913845541,-24784.64670076,0.00028025,2]
[401087594,1767913845554,-1549.0,0.00028048,2]
[401087595,1767913845563,-900.0,0.00028069,7]
[401087596,1767913845572,-1549.0,0.00028081,2]
[401087597,1767913845581,-900.0,0.00028091,7]
[401087598,1767913845591,-554.95289818,0.00028095,22]
[401087599,1767913845600,-1064.121297,0.000281,2]
[401087600,1767913845609,-10000.0,0.00028187,30]
[401087601,1767913845619,-444.77,0.000282,2]
[401087602,1767913845627,-167.4,0.000282,7]
[401087603,1767913845636,-17902.14,0.000282,2]
[401087604,1767913845645,-1549.0,0.00028245,2]
[401087605,1767913845654,-3591.0,0.00028297,7]
[401087606,1767913845663,-168.0,0.00028301,2]
[401087607,1767913845673,-1549.0,0.00028326,2]
[401087608,1767913845683,-3591.0,0.0002835,2]
[401087609,1767913845692,-168.0,0.00028361,2]
[401087610,1767913845701,-800.0,0.00028378,2]
[401087611,1767913845709,-904.83,0.000284,14]
[401087612,1767913845718,-1549.0,0.00028402,7]
[401087613,1767913845727,-900.0,0.00028467,7]
[401087614,1767913845736,-5016.95882183,0.0002849,2]
[401087615,1767913845744,-151.0,0.0002849,7]
[401087616,1767913845753,-264.224,0.0002849,7]
[401087617,1767913845762,-264.224,0.0002849,7]
[401087618,1767913845771,-264.224,0.0002849,7]
[401087619,1767913845779,-264.224,0.0002849,7]
[401087620,1767913845788,-151.0,0.0002849,7]
[401087621,1767913845797,-151.0,0.0002849,7]
[401087622,1767913845805,-151.0,0.0002849,7]
[401087623,1767913845814,-151.0,0.0002849,7]
[401087624,1767913845823,-151.0,0.0002849,7]
[401087625,1767913845832,-850.0,0.00028493,5]
[401087626,1767913845841,-1345.80901206,0.00028493,5]
[401087627,1767913845850,-900.0,0.00028493,5]
[401087628,1767913845859,-350.0,0.00028493,5]
[401087629,1767913845870,-350.0,0.00028493,5]
[401087630,1767913845879,-800.0,0.00028497,2]
[401087631,1767913845888,-54575.02715063,0.000285,7]
[401087632,1767913846004,-297.08773857,0.000285,7]
[401087649,1767913933768,498.0,0.00030136,120]
[401087680,1767915032134,-300.0,0.00012193,2]
[401087682,1767915032143,-592.0,0.00012193,2]
[401087683,1767915032153,-278.7303819,0.00012193,2]
[401087685,1767915032162,-500.0,0.00012193,2]
[401087687,1767915032171,-500.0,0.00012193,2]
[401087689,1767915032180,-500.0,0.00012193,2]
[401087690,1767915032189,-13301.06546902,0.00012194,2]
[401087691,1767915032198,-483.33500795,0.00012194,2]
[401087692,1767915032208,-741.65050362,0.00012194,2]
[401087694,1767915032217,-741.65050362,0.00012194,2]
[401087696,1767915032226,-741.65050362,0.00012194,2]
[401087698,1767915032236,-741.65050362,0.00012194,2]
[401087699,1767915032245,-741.65050362,0.00012194,2]
[401087700,1767915032264,-741.65050362,0.00012194,2]
[401087701,1767915032273,-741.65050362,0.00012194,2]
[401087702,1767915032283,-741.65050362,0.00012194,2]
[401087703,1767915032292,-741.65050362,0.00012194,2]
[401087704,1767915032301,-741.65050362,0.00012194,2]
[401087705,1767915032311,-741.65050362,0.00012194,2]
[401087706,1767915032320,-741.65050362,0.00012194,2]
[401087707,1767915032330,-741.65050362,0.00012194,2]
[401087708,1767915032339,-741.65050362,0.00012194,2]
[401087709,1767915032348,-746.94800721,0.00012194,2]
[401087710,1767915032357,-746.94800721,0.00012194,2]
[401087711,1767915032367,-746.94800721,0.00012194,2]
[401087712,1767915032376,-746.94800721,0.00012194,2]
[401087713,1767915032386,-746.94800721,0.00012194,2]
[401087714,1767915032395,-746.94800721,0.00012194,2]
[401087715,1767915032406,-746.94800721,0.00012194,2]
[401087716,1767915032415,-286.49775269,0.00012194,2]
[401087717,1767915032428,-292.86939991,0.00012194,2]
[401087718,1767915032439,-311.87762873,0.00012194,2]
[401087719,1767915032448,-655.28157127,0.00012194,2]
[401087722,1767915038311,-300.0,0.00012438,2]
[401087723,1767915038322,-300.0,0.00012438,2]
[401087724,1767915038332,-300.0,0.00012438,2]
[401087725,1767915038341,-300.0,0.00012438,2]
[401087727,1767915038350,-300.0,0.00012438,2]
[401087728,1767915038359,-300.0,0.00012438,2]
[401087730,1767915038369,-300.0,0.00012438,2]
[401087732,1767915038379,-300.0,0.00012438,2]
[401087733,1767915038389,-300.0,0.00012438,2]
[401087734,1767915038398,-300.0,0.00012438,2]
[401087735,1767915038407,-300.0,0.00012438,2]
[401087736,1767915038416,-300.0,0.00012438,2]
[401087737,1767915038425,-300.0,0.00012438,2]
[401087738,1767915038435,-300.0,0.00012438,2]
[401087739,1767915038444,-300.0,0.00012438,2]
[401087740,1767915038454,-600.0,0.00012438,2]
[401087741,1767915038463,-478.35295088,0.00013273,2]
[401087742,1767915038472,-500.0,0.00013273,2]
[401087743,1767915038481,-500.0,0.00013273,2]
[401087744,1767915038492,-500.0,0.00013273,2]
[401087745,1767915038501,-500.0,0.00013273,2]
[401087746,1767915038510,-500.0,0.00013273,2]
[401087747,1767915038519,-500.0,0.00013273,2]
[401087748,1767915038529,-500.0,0.00013273,2]
[401087749,1767915038538,-500.0,0.00013273,2]
[401087750,1767915038547,-500.0,0.00013273,2]
[401087751,1767915038557,-500.0,0.00013273,2]
[401087752,1767915038566,-500.0,0.00013273,2]
[401087753,1767915038575,-500.0,0.00013273,2]
[401087754,1767915038585,-500.0,0.00013273,2]
[401087755,1767915038595,-420.0,0.00013383,2]
[401087756,1767915038605,-204.74789967,0.00013443,2]
[401087757,1767915038614,-300.0,0.00013673,2]
[401087758,1767915038623,-720.0,0.00013682,2]
[401087759,1767915038633,-500.0,0.00013699,2]
[401087760,1767915038642,-500.0,0.00013699,2]
[401087761,1767915038652,-500.0,0.00013699,2]
[401087762,1767915038661,-500.0,0.00013699,2]
[401087763,1767915038671,-1000.0,0.00013821,2]
[401087764,1767915038680,-1000.0,0.00013821,2]
[401087765,1767915038690,-328.90185064,0.00014193,2]
[401087766,1767915038699,-600.0,0.00014221,2]
[401087767,1767915038708,-1000.0,0.00014247,2]
[401087768,1767915038717,-1000.0,0.00014247,2]
[401087769,1767915038727,-1000.0,0.00014247,2]
[401087770,1767915038736,-1174.40739295,0.00014368,2]
[401087771,1767915038746,-1500.0,0.00014368,2]
[401087772,1767915038943,-587.0,0.00014689,2]
[401087773,1767915038953,-900.0,0.00014768,2]
[401087774,1767915038963,-1500.0,0.00014795,2]
[401087775,1767915038973,-1500.0,0.00014795,2]
[401087776,1767915038982,-1500.0,0.00014795,2]